bitfinex-derivatives/quotes_ETHF0:USTF0_20251216
["timestamp","ask_amount","ask_price","bid_price","bid_amount"]
[1765898784120,3.2078,2923.2,2923.1,7.015e-05]
[1765898784414,5.9078,2923.2,2923.1,7.015e-05]
[1765898784621,8.465,2923.2,2923.1,7.015e-05]
[1765898784824,14.465,2923.2,2921.3,3.2078]
[1765898785123,3.2078,2922.0,2921.3,3.37899]
[1765898785421,3.2078,2922.3,2921.3,3.2078]
[1765898785621,3.2078,2922.3,2921.0,0.26443121]
[1765898785622,3.2078,2921.7,2921.0,3.47223121]
[1765898785827,0.00512864,2921.6,2921.1,0.00341912]
[1765898786330,0.00512864,2921.6,2921.3,0.17118]
[1765898786525,0.00512864,2921.6,2921.4,3.37898]
[1765898786821,0.00512864,2921.6,2921.4,0.17118]
[1765898787126,0.00512864,2921.6,2921.5,0.17118]
[1765898787626,2.864e-05,2921.6,2921.5,0.17118]
[1765898788026,3.2078,2922.9,2922.1,0.17114]
[1765898788222,3.2078,2922.9,2922.1,3.37894]
[1765898788624,3.2078,2922.5,2922.1,0.17114]
[1765898788830,2.5572,2923.2,2922.1,0.17114]
[1765898788831,3.2078,2922.8,2922.1,0.17114]
[1765898789127,0.00512864,2922.7,2922.1,0.17114]
[1765898790325,0.00512864,2922.7,2922.4,3.2078]
[1765898790629,0.00512864,2922.7,2922.2,3.2078]
[1765898791623,0.00512864,2922.7,2922.5,5.7873]
[1765898791824,0.00512864,2922.7,2922.6,6.0]
[1765898792032,0.00512864,2922.7,2922.6,6.17111]
[1765898792232,3.2078,2923.1,2922.6,6.0]
[1765898792431,3.2078,2923.5,2923.0,0.17109]
[1765898792736,0.00408826,2923.6,2923.3,0.17107]
[1765898793035,0.00408826,2923.6,2923.3,0.17421147]
[1765898793923,0.00408826,2923.6,2923.5,0.17106]
[1765898794932,0.00408826,2923.6,2923.3,0.00314147]
[1765898795134,0.00408826,2923.6,2923.4,3.2078]
[1765898795634,0.00408826,2923.6,2923.3,0.00314147]
[1765898796932,0.00408826,2923.6,2923.4,3.2078]
[1765898798131,0.00408826,2923.6,2923.3,0.00314147]
[1765898800535,2.19408826,2923.6,2923.3,0.00314147]
[1765898800839,3.2078,2923.4,2923.3,0.00314147]
[1765898801037,5.4878,2923.4,2923.3,4.147e-05]
[1765898801236,5.4878,2923.4,2922.4,3.2078]
[1765898801432,3.2078,2923.0,2922.4,3.2078]
[1765898801931,5.8678,2923.0,2922.1,3.2078]
[1765898802236,3.2078,2922.4,2922.3,0.00512864]
[1765898803235,5.5878,2922.4,2922.1,0.00252169]
[1765898806244,3.3078,2922.4,2922.1,0.00252169]
[1765898806546,3.2078,2922.4,2922.1,0.00252169]
[1765898806746,3.2078,2922.8,2922.1,0.00252169]
[1765898806944,5.4478,2922.8,2922.1,0.00252169]
[1765898807150,3.2078,2922.8,2922.1,0.00252169]
[1765898807346,5.5378,2922.8,2922.1,0.00252169]
[1765898807553,5.5378,2922.8,2922.2,3.2078]
[1765898807751,3.2078,2922.8,2922.2,3.37893]
[1765898808645,3.2078,2922.8,2922.2,0.17113]
[1765898808849,3.2078,2922.8,2922.2,3.37893]
[1765898809341,3.2078,2922.8,2922.3,0.17113]
[1765898810550,5.2654,2923.2,2922.4,0.17112]
[1765898810850,5.2654,2923.2,2922.1,0.00252169]
[1765898810851,2.7191,2922.5,2922.1,0.00252169]
[1765898811051,5.3091,2922.5,2922.1,0.00252169]
[1765898811256,3.2078,2922.3,2922.1,0.00252169]
[1765898812053,5.5578,2922.3,2922.1,0.00252169]
[1765898812250,2.7191,2921.1,2919.5,3.2078]
[1765898812449,3.2078,2919.9,2919.0,2.74372]
[1765898812650,2.53,2919.9,2919.0,2.74372]
[1765898812856,2.53,2919.9,2919.0,2.5724]
[1765898813357,0.00513794,2919.7,2919.0,0.00243116]
[1765898813548,2.47513794,2919.7,2919.0,0.00243116]
[1765898814252,2.41513794,2919.7,2919.0,0.00243116]
[1765898814452,0.00513794,2919.7,2919.3,2.98551661]
[1765898814754,2.40513794,2919.7,2919.2,2.5724]
[1765898814949,2.40513794,2919.7,2919.0,0.00243116]
[1765898815351,1.02513794,2919.7,2919.0,0.00243116]
[1765898815552,2.35513794,2919.7,2919.0,0.00243116]
[1765898815954,3.2078,2919.1,2919.0,0.00243116]
[1765898816157,3.2078,2919.1,2918.3,2.68622298]
[1765898816158,5.6478,2919.1,2918.3,2.68622298]
[1765898816353,3.2078,2918.4,2918.3,0.11382298]
[1765898816560,5.8578,2918.4,2918.3,0.11382298]
[1765898816752,2.65,2918.4,2918.3,0.11382298]
[1765898817053,5.5278,2918.4,2918.3,0.11382298]
[1765898817357,5.5278,2918.4,2917.6,2.5724]
[1765898817656,3.2078,2917.7,2916.9,2.5724]
[1765898817850,3.2078,2917.0,2916.9,2.5724]
[1765898818051,2.41,2917.0,2914.9,0.17156]
[1765898818254,2.6734,2916.0,2914.9,0.00270865]
[1765898818454,5.2334,2916.0,2914.9,0.00270865]
[1765898818652,2.56,2916.0,2914.9,0.00270865]
[1765898818859,0.00513794,2915.7,2914.9,0.00270865]
[1765898819056,2.57513794,2915.7,2914.9,0.00270865]
[1765898821048,3.2078,2915.0,2914.9,0.00270865]
[1765898821249,5.5778,2915.0,2914.9,0.00270865]
[1765898821656,3.2078,2915.0,2914.9,0.00270865]
[1765898822251,5.6678,2915.0,2914.9,8.65e-06]
[1765898822456,11.6678,2915.0,2914.9,8.65e-06]
[1765898822657,3.2078,2915.0,2914.9,8.65e-06]
[1765898822851,5.7078,2915.0,2914.9,8.65e-06]
[1765898823255,5.4578,2915.0,2914.9,8.65e-06]
[1765898823658,11.4578,2915.0,2914.9,8.65e-06]
[1765898824056,0.17157,2914.8,2913.6,0.00959454]
[1765898824260,3.2078,2913.7,2913.6,0.00959454]
[1765898824460,3.2078,2913.7,2913.6,2.68009454]
[1765898824663,0.00514703,2913.9,2913.6,5.88789454]
[1765898824862,3.2078,2914.8,2914.4,2.6705]
[1765898825062,3.2078,2916.3,2914.5,6.0]
[1765898825264,0.00333733,2914.8,2914.6,9.945]
[1765898825456,1.4487,2916.8,2915.2,0.17154]
[1765898825663,3.7387,2916.8,2915.2,2.6705]
[1765898825863,0.00514703,2916.3,2915.7,0.00514703]
[1765898826065,2.39514703,2916.3,2915.7,0.00514703]
[1765898826458,2.5363,2916.0,2915.7,0.00514703]
[1765898826658,4.7363,2916.0,2915.7,4.703e-05]
[1765898826958,3.2078,2916.1,2915.8,0.17151]
[1765898827154,0.00916085,2916.3,2916.0,2.6705]
[1765898827356,0.00916085,2916.3,2915.7,4.703e-05]
[1765898827556,2.56916085,2916.3,2915.7,4.703e-05]
[1765898827755,0.00916085,2916.3,2915.7,4.703e-05]
[1765898827954,1.58916085,2916.3,2915.7,3.20784703]
[1765898828358,3.2078,2916.2,2915.7,4.703e-05]
[1765898828567,3.2078,2916.0,2915.7,4.703e-05]
[1765898829061,5.4778,2916.0,2915.7,4.703e-05]
[1765898829262,3.2078,2915.8,2915.7,4.703e-05]
[1765898829458,2.23,2915.8,2915.7,4.703e-05]
[1765898829658,0.64,2915.8,2915.7,4.703e-05]
[1765898829861,3.2078,2916.2,2915.7,4.703e-05]
[1765898830365,0.00916085,2916.3,2915.7,4.703e-05]
[1765898830669,3.2078,2916.2,2915.7,4.703e-05]
[1765898830856,5.5078,2916.2,2915.7,4.703e-05]
[1765898831062,0.00916085,2916.3,2915.7,4.703e-05]
[1765898831256,3.2078,2916.2,2915.7,4.703e-05]
[1765898831460,5.6278,2916.2,2915.7,4.703e-05]
[1765898831661,3.2078,2915.9,2915.7,4.703e-05]
[1765898831871,5.6278,2915.9,2915.7,4.703e-05]
[1765898832071,2.42,2915.9,2915.7,4.703e-05]
[1765898832474,8.42,2915.9,2915.7,4.703e-05]
[1765898832777,40.8,2915.8,2915.7,4.703e-05]
[1765898833068,43.26,2915.8,2915.7,4.703e-05]
[1765898833263,2.46,2915.8,2915.7,4.703e-05]
[1765898833763,40.8,2915.9,2915.7,4.703e-05]
[1765898833963,41.39,2915.9,2915.7,4.703e-05]
[1765898834269,41.42,2915.9,2915.7,4.703e-05]
[1765898834468,41.35,2915.9,2915.7,4.703e-05]
[1765898834663,43.45,2915.9,2915.7,4.703e-05]
[1765898835066,49.45,2915.9,2915.7,4.703e-05]
[1765898835869,6.0,2915.8,2915.7,4.703e-05]
[1765898836174,8.23,2915.8,2915.7,4.703e-05]
[1765898836373,8.40151,2915.8,2915.7,4.703e-05]
[1765898836575,49.20151,2915.8,2915.7,4.703e-05]
[1765898837275,0.17154,2915.4,2914.4,0.00400769]
[1765898837479,3.2078,2914.6,2914.4,0.00400769]
[1765898838075,3.2078,2915.0,2914.4,0.00400769]
[1765898838276,3.21294703,2915.0,2914.5,3.2078]
[1765898838577,3.2078,2914.7,2914.4,0.00400769]
[1765898839177,5.6078,2914.7,2914.4,0.00400769]
[1765898839973,3.2078,2914.7,2914.4,0.00400769]
[1765898840674,3.2078,2914.7,2914.4,2.67450769]
[1765898840870,0.00514703,2915.0,2914.4,2.67450769]
[1765898841471,2.26514703,2915.0,2914.4,0.00400769]
[1765898841677,1.18514703,2915.0,2914.4,0.00400769]
[1765898841881,1.41514703,2915.0,2914.4,0.00400769]
[1765898842074,0.00514703,2915.0,2914.4,3.21180769]
[1765898842674,0.00514703,2915.0,2914.4,0.00400769]
[1765898843081,0.00514703,2915.0,2914.6,3.2078]
[1765898843480,0.00514703,2915.0,2914.9,3.37937]
[1765898843878,0.00514703,2915.0,2914.6,15.6578]
[1765898844087,0.00514703,2915.0,2914.9,3.2078]
[1765898844585,0.00514703,2915.0,2914.8,5.8783]
[1765898844787,0.00514703,2915.0,2914.7,0.17158]
[1765898845382,0.00514703,2915.0,2914.8,23.6164946]
[1765898845583,3.21181382,2916.3,2915.4,0.17153]
[1765898845775,5.42181382,2916.3,2915.5,5.8783]
[1765898846087,3.2078,2916.1,2915.1,3.2078]
[1765898846380,3.2078,2915.2,2914.8,0.17157]
[1765898846577,0.00514703,2915.3,2914.8,3.37937]
[1765898846776,0.00514703,2915.3,2914.8,3.2078]
[1765898846981,0.00514703,2915.3,2914.8,5.8783]
[1765898847182,0.00514703,2915.3,2915.1,0.17155]
[1765898847590,0.00514703,2915.3,2914.8,3.2078]
[1765898847885,0.00514703,2915.3,2914.8,5.8783]
[1765898848080,0.00514703,2915.3,2914.8,3.2078]
[1765898848286,4.1233201,2915.2,2914.7,0.00514703]
[1765898848486,3.2078,2914.9,2914.7,0.00514703]
[1765898848688,0.91553361,2914.8,2914.7,0.00514703]
[1765898849689,3.2078,2914.9,2914.7,0.00514703]
[1765898850189,3.2078,2915.2,2914.7,0.00514703]
[1765898850486,0.90412096,2915.1,2914.7,0.00514703]
[1765898850790,3.2078,2914.9,2914.7,0.00514703]
[1765898850995,3.2078,2915.2,2914.7,0.00514703]
[1765898851291,0.90072736,2915.1,2914.7,0.00514703]
[1765898851481,0.00514703,2915.3,2914.8,5.8783]
[1765898852281,0.00514703,2915.3,2915.2,3.2078]
[1765898852481,3.21181382,2916.3,2915.8,0.17151]
[1765898852687,3.21181382,2916.3,2915.8,2.8197046]
[1765898853089,0.00401382,2916.3,2915.8,2.8197046]
[1765898853489,0.00401382,2916.3,2916.2,2.6705]
[1765898853690,3.2078,2917.2,2916.2,5.3186946]
[1765898853887,3.2078,2917.2,2916.5,3.2078]
[1765898854093,0.17137,2918.2,2917.1,3.2078]
[1765898854094,0.89618921,2917.8,2917.1,3.2078]
[1765898854388,2.5363,2918.3,2917.1,5.8559946]
[1765898854694,3.2078,2917.9,2917.4,0.00514703]
[1765898856095,0.00514703,2918.0,2917.4,3.21294703]
[1765898856288,0.00514703,2918.0,2917.7,3.2078]
[1765898857295,0.00514703,2918.0,2917.6,2.4205]
[1765898857495,2.27514703,2918.0,2917.4,3.21294703]
[1765898857898,0.30514703,2918.0,2917.4,3.21294703]
[1765898858390,0.00514703,2918.0,2917.4,3.21294703]
[1765898858590,3.2078,2917.7,2917.4,0.00514703]
[1765898859100,0.00514703,2918.0,2917.4,0.00514703]
[1765898859496,0.00514703,2918.0,2917.6,5.6283]
[1765898859894,0.00514703,2918.0,2917.6,5.79971]
[1765898860095,0.00514703,2918.0,2917.6,10.47171]
[1765898860396,0.00514703,2918.0,2917.6,5.6283]
[1765898860793,0.00514703,2918.0,2917.6,3.2078]
[1765898861101,0.00514703,2918.0,2917.4,0.00514703]
[1765898861599,3.2078,2917.9,2917.4,0.00514703]
[1765898861796,3.2078,2917.5,2917.4,0.00514703]
[1765898861991,3.21294703,2918.0,2917.4,0.00514703]
[1765898862299,3.2078,2917.7,2917.4,0.00514703]
[1765898862703,3.2078,2917.8,2917.4,0.00514703]
[1765898862901,0.00514703,2918.0,2917.4,0.00514703]
[1765898863096,0.00514703,2918.0,2917.6,2.4205]
[1765898863600,3.2078,2917.7,2917.4,0.00514703]
[1765898863894,3.21294703,2918.0,2917.4,0.00514703]
[1765898864502,3.2078,2917.7,2917.4,0.00514703]
[1765898864696,0.00514703,2918.0,2917.4,0.00514703]
[1765898864895,3.2078,2917.8,2917.4,0.00514703]
[1765898866604,3.2078,2917.5,2917.1,0.00431516]
[1765898866794,5.7478,2917.5,2917.1,0.00431516]
[1765898866995,3.2078,2917.2,2916.2,3.2078]
[1765898867300,3.2078,2916.9,2916.2,5.6283]
[1765898867504,5.5178,2916.9,2916.3,0.00514703]
[1765898868097,5.5178,2916.9,2916.3,0.00760857]
[1765898868300,3.2078,2916.6,2916.3,0.00760857]
[1765898868506,4.761,2916.9,2916.3,0.00760857]
[1765898868507,3.2078,2916.9,2916.3,0.00760857]
[1765898868905,5.4378,2916.9,2916.3,0.00760857]
[1765898869605,2.23,2916.9,2916.5,3.2078]
[1765898869800,3.2078,2917.5,2916.9,2.4205]
[1765898870001,3.2078,2917.5,2917.0,0.17144]
[1765898870199,3.2078,2917.8,2917.0,0.17144]
[1765898870496,3.2078,2917.8,2917.2,3.2078]
[1765898870696,0.00514703,2918.0,2917.2,6.6136313]
[1765898870898,0.00514703,2918.0,2917.6,2.4205]
[1765898871303,0.00514703,2918.0,2917.9,0.17139]
[1765898871604,3.2078,2919.0,2918.0,0.17138]
[1765898871910,0.46,2919.0,2918.4,3.2078]
[1765898872209,3.2078,2918.6,2917.6,5.6283]
[1765898872509,0.00514703,2918.4,2917.8,0.00514703]
[1765898872809,2.54514703,2918.4,2917.8,0.00514703]
[1765898873202,0.00514703,2918.4,2917.8,0.00514703]
[1765898873398,3.2078,2918.2,2917.8,0.00514703]
[1765898873607,0.00514703,2918.4,2917.8,0.00514703]
[1765898874310,0.00514703,2918.4,2917.9,3.2078]
[1765898874505,3.2078,2918.2,2917.8,0.00514703]
[1765898874705,3.2078,2918.2,2917.6,0.00370981]
[1765898874706,3.2078,2917.9,2917.6,5.684e-05]
[1765898874908,3.2078,2917.9,2916.8,3.2078]
[1765898874909,5.5378,2917.9,2916.8,3.2078]
[1765898875211,3.2078,2917.5,2916.9,2.4205]
[1765898875601,3.2078,2917.8,2917.0,0.17144]
[1765898875814,3.2078,2917.8,2917.1,0.00514703]
[1765898876103,3.2078,2918.1,2917.1,3.21294703]
[1765898876303,5.5478,2918.1,2917.1,3.21294703]
[1765898876707,5.5478,2918.1,2917.4,3.2078]
[1765898876910,5.7678,2918.1,2917.4,3.2078]
[1765898877201,3.2078,2917.6,2917.1,0.00514703]
[1765898877511,3.2078,2917.9,2917.1,0.00514703]
[1765898877712,3.2078,2917.9,2917.4,2.64355662]
[1765898878204,3.2078,2918.2,2917.8,2.64355662]
[1765898878408,0.00514703,2918.4,2917.8,5.85135662]
[1765898879403,0.00514703,2918.4,2917.8,5.84914982]
[1765898880401,0.00514703,2918.4,2917.8,3.2078]
[1765898880601,0.00514703,2918.4,2918.1,5.84914982]
[1765898880807,0.00514703,2918.4,2918.3,2.4205]
[1765898881003,3.2078,2919.4,2918.3,2.4205]
[1765898881208,3.2078,2919.7,2919.1,2.64134982]
[1765898881414,3.2078,2919.7,2918.3,5.48291886]
[1765898881415,5.7978,2919.7,2918.6,3.2078]
[1765898881709,5.7978,2919.7,2918.5,7.616]
[1765898881710,3.2078,2919.6,2919.0,2.4205]
[1765898882007,3.2078,2919.1,2918.0,3.37918]
[1765898882212,5.4578,2919.1,2919.0,0.00756442]
[1765898882408,3.3078,2919.1,2919.0,0.00756442]
[1765898882613,5.6778,2919.1,2918.3,5.6283]
[1765898882910,3.2878,2919.1,2918.3,5.6283]
[1765898883100,3.2878,2919.1,2918.4,3.2078]
[1765898883301,3.2878,2919.1,2918.3,2.4205]
[1765898883302,3.2078,2918.8,2918.3,2.4205]
[1765898883502,3.2078,2918.8,2918.3,0.00839501]
[1765898883712,3.2078,2918.5,2918.3,0.00839501]
[1765898884005,0.17953832,2919.6,2918.3,0.00839501]
[1765898884006,3.2078,2919.0,2918.3,0.00839501]
[1765898884206,3.2078,2919.3,2918.3,2.27189501]
[1765898884407,5.4378,2919.3,2918.3,2.27189501]
[1765898884809,5.3478,2919.3,2918.6,3.2078]
[1765898885110,3.3378,2919.3,2918.6,3.2078]
[1765898885311,3.2078,2918.8,2918.4,0.17136]
[1765898885509,3.2078,2918.8,2918.3,0.00839501]
[1765898885906,3.2078,2918.5,2918.3,0.00839501]
[1765898886106,3.2078,2918.8,2918.3,0.00839501]
[1765898886307,5.5678,2918.8,2918.3,0.00839501]
[1765898886507,5.5678,2918.8,2918.3,2.27189501]
[1765898886508,5.5578,2918.8,2918.3,2.27189501]
[1765898886708,3.8178,2918.8,2918.3,2.27189501]
[1765898886901,3.2078,2918.8,2918.3,0.00839501]
[1765898887106,5.5278,2918.8,2918.3,0.00839501]
[1765898887414,3.2078,2918.5,2918.3,0.00839501]
[1765898887714,5.6378,2918.5,2918.3,0.00839501]
[1765898888513,3.2078,2918.8,2918.3,2.27189501]
[1765898888710,5.4578,2918.8,2918.3,2.27189501]
[1765898889012,3.2078,2918.5,2918.3,0.00839501]
[1765898889510,40.9713,2919.5,2918.3,0.00839501]
[1765898889511,3.2078,2918.8,2918.3,0.00839501]
[1765898889815,5.7178,2918.8,2918.3,0.00839501]
[1765898890008,3.2078,2918.7,2918.3,0.00839501]
[1765898890906,5.3978,2918.7,2918.3,0.00839501]
[1765898891117,3.2078,2918.4,2918.3,0.00839501]
[1765898891814,5.4678,2918.4,2918.3,0.00839501]
[1765898892011,2.0791,2918.3,2917.1,3.2078]
[1765898892309,3.2078,2918.0,2917.1,3.2078]
[1765898892516,3.2078,2918.4,2917.6,2.2635]
[1765898892816,3.2078,2918.4,2917.7,3.2078]
[1765898893003,1.9207,2919.0,2918.0,0.17138]
[1765898893004,3.2078,2918.7,2918.0,0.17138]
[1765898893206,0.00513787,2918.3,2918.0,0.17138]
[1765898893404,0.00513787,2918.3,2917.8,0.00513787]
[1765898893814,0.00513787,2918.3,2918.0,0.17138]
[1765898894010,0.00513787,2918.3,2918.2,0.17137]
[1765898894212,3.2078,2919.3,2919.1,0.17131]
[1765898894412,3.2078,2919.9,2919.1,0.17131]
[1765898894709,5.62091045,2919.6,2918.7,11.609]
[1765898894909,5.62091045,2919.6,2919.0,2.2635]
[1765898894910,3.21091045,2919.6,2919.0,2.2635]
[1765898895114,3.21604832,2919.6,2919.0,2.43482]
[1765898895315,0.00824832,2919.6,2919.3,0.1713]
[1765898895512,0.00824832,2919.6,2919.5,0.17129]
[1765898895711,3.20587605,2919.9,2919.8,0.17128]
[1765898895910,3.2078,2920.5,2919.9,0.17127]
[1765898896213,3.2078,2920.8,2920.1,3.2078]
[1765898896406,3.6978,2920.8,2920.0,0.17126]
[1765898896606,0.00513787,2920.7,2920.1,0.00513787]
[1765898896818,0.00513787,2920.7,2920.1,3.21293787]
[1765898897116,0.00513787,2920.7,2920.2,0.17125]
[1765898897915,0.00513787,2920.7,2920.4,2.2635]
[1765898898121,0.00513787,2920.7,2920.6,0.17123]
[1765898898628,3.787e-05,2920.7,2920.6,6.17123]
[1765898898818,3.787e-05,2920.7,2920.6,0.17123]
[1765898899214,3.787e-05,2920.7,2920.6,6.17123]
[1765898899415,3.787e-05,2920.7,2920.4,3.2078]
[1765898899615,3.787e-05,2920.7,2920.1,3.21293787]
[1765898900324,3.2078,2920.4,2920.1,0.00513787]
[1765898900526,5.6878,2920.4,2920.1,0.00513787]
[1765898900722,3.20783787,2920.7,2920.1,0.00513787]
[1765898900924,3.2078,2920.4,2920.1,0.00513787]
[1765898901124,7.8569,2920.4,2920.1,0.00513787]
[1765898901314,13.8569,2920.4,2919.2,3.2078]
[1765898901625,3.2078,2919.3,2918.6,3.2078]
[1765898901816,3.2078,2919.3,2917.6,2.2635]
[1765898901817,3.2078,2918.7,2917.9,3.2078]
[1765898902018,2.0791,2919.7,2917.9,3.2078]
[1765898902019,3.2078,2918.4,2917.9,3.2078]
[1765898902223,3.2078,2918.7,2918.4,2.43486]
[1765898902421,0.00388298,2918.7,2918.5,3.2078]
[1765898902922,0.00388298,2918.7,2918.6,3.2078]
[1765898903533,0.00388298,2918.7,2918.2,0.17137]
[1765898903730,0.00388298,2918.7,2918.4,3.2078]
[1765898904430,0.00388298,2918.7,2918.4,5.4713]
[1765898905024,0.00388298,2918.7,2918.6,0.17135]
[1765898906535,0.00388298,2918.7,2918.4,5.4713]
[1765898906833,0.00388298,2918.7,2918.4,3.2078]
[1765898907329,0.00388298,2918.7,2918.4,3.37916]
[1765898908328,0.00388298,2918.7,2918.5,2.99254372]
[1765898908930,0.00388298,2918.7,2918.6,0.17135]
[1765898909326,0.00513787,2918.8,2918.6,0.17135]
[1765898909632,2.085e-05,2918.8,2918.7,25.76514]
[1765898909832,2.085e-05,2918.8,2918.7,19.76514]
[1765898910425,3.2078,2919.8,2918.9,0.17133]
[1765898910629,3.2078,2919.8,2919.2,3.2078]
[1765898911036,3.2078,2919.8,2919.2,3.37911]
[1765898911228,3.2078,2920.2,2919.5,3.2078]
[1765898911429,0.00513787,2920.1,2919.8,0.17128]
[1765898911629,0.00513787,2920.1,2920.0,3.16381372]
[1765898911829,3.2078,2921.1,2920.4,2.2635]
[1765898912126,3.2078,2921.1,2920.4,5.4713]
[1765898912327,3.2078,2921.4,2920.4,5.4713]
[1765898912736,0.00513787,2921.2,2920.4,5.4713]
[1765898913032,0.00513787,2921.2,2920.7,3.2078]
[1765898913428,0.00513787,2921.2,2920.8,0.17122]
[1765898913832,0.00513787,2921.2,2921.1,1.9727]
[1765898914029,0.00513787,2921.2,2920.8,0.17122]
[1765898914430,0.00513787,2921.2,2921.1,5.12294372]
[1765898914735,0.00513787,2921.2,2921.1,8.33074372]
[1765898915230,3.787e-05,2921.2,2921.1,8.33074372]
[1765898915832,3.787e-05,2921.2,2921.1,3.2078]
[1765898916024,3.787e-05,2921.2,2921.1,5.3382]
[1765898918638,3.787e-05,2921.2,2921.1,2.1304]
[1765898919533,3.787e-05,2921.2,2921.1,3.379]
[1765898920139,3.787e-05,2921.2,2921.1,5.3382]
[1765898920337,3.787e-05,2921.2,2921.1,8.33074372]
[1765898920528,3.2078,2922.4,2922.0,0.17115]
[1765898921037,3.2078,2922.7,2922.5,1.9592]
[1765898921538,3.2078,2922.7,2922.3,0.00513787]
[1765898921739,3.21199556,2922.7,2922.5,0.00442679]
[1765898921936,3.21199556,2922.7,2922.5,1.96362679]
[1765898922126,0.00419556,2922.7,2922.5,1.96362679]
[1765898922327,0.00419556,2922.7,2922.5,0.00442679]
[1765898922636,0.00419556,2922.7,2922.5,5.17142679]
[1765898922832,0.00419556,2922.7,2922.5,3.21222679]
[1765898923036,0.00419556,2922.7,2922.5,0.00442679]
[1765898923536,3.2078,2922.6,2922.5,0.00442679]
[1765898923731,5.4478,2922.6,2922.5,0.00442679]
[1765898923935,1.9281,2922.5,2921.8,3.2078]
[1765898924139,4.6181,2922.5,2921.8,3.2078]
[1765898924641,3.2078,2922.2,2921.5,3.2078]
[1765898924837,5.4478,2922.2,2921.5,3.2078]
[1765898925046,5.4478,2922.2,2921.6,0.00513787]
[1765898925941,3.2078,2921.7,2921.6,3.787e-05]
[1765898926240,5.6378,2921.7,2921.6,3.787e-05]
[1765898926434,11.6378,2921.7,2921.6,3.787e-05]
[1765898926632,11.6378,2921.7,2920.8,3.37902]
[1765898926944,5.6378,2921.7,2921.0,0.1712]
[1765898927236,3.2078,2921.7,2921.6,0.17117]
[1765898927432,3.2078,2922.1,2921.6,3.37897]
[1765898927636,3.21293787,2922.1,2921.6,3.38677247]
[1765898927840,3.2078,2921.8,2921.6,0.17897247]
[1765898928234,3.21293787,2922.1,2921.6,0.17897247]
[1765898928635,3.2078,2921.8,2921.6,0.17897247]
[1765898928942,3.2078,2921.8,2921.6,0.00780247]
[1765898929134,5.8878,2921.8,2921.6,0.00780247]
[1765898930533,3.2078,2921.8,2921.6,0.00780247]
[1765898930939,5.8878,2921.8,2921.6,0.00780247]
[1765898931337,4.1878,2921.8,2921.6,0.00780247]
[1765898931542,3.2078,2922.0,2921.6,0.00780247]
[1765898931837,0.00513787,2922.1,2921.6,0.00780247]
[1765898932043,0.00513787,2922.1,2921.8,1.9592]
[1765898932439,0.00513787,2922.1,2922.0,0.17115]
[1765898932638,3.21199556,2922.7,2922.5,1.9592]
[1765898932838,0.00419556,2922.7,2922.6,3.2078]
[1765898933348,4.4478577,2923.6,2922.6,3.2078]
[1765898933543,3.6878,2923.6,2923.0,3.2078]
[1765898933741,0.00513787,2923.4,2923.0,3.2078]
[1765898934244,0.00513787,2923.4,2923.2,1.9592]
[1765898934445,0.00932535,2923.4,2923.2,1.9592]
[1765898935041,3.2078,2923.3,2923.2,1.9592]
[1765898935442,0.00932535,2923.4,2923.2,1.9592]
[1765898935643,0.00932535,2923.4,2923.3,6.20034372]
[1765898935845,0.00932535,2923.4,2923.3,6.37141372]
[1765898936154,3.2078,2924.4,2923.9,1.9592]
[1765898936345,5.6078,2924.4,2923.9,5.167]
[1765898936546,3.2078,2924.4,2923.9,1.9592]
[1765898937052,0.00732575,2924.4,2923.9,1.96874252]
[1765898937435,0.00732575,2924.4,2923.9,5.17654252]
[1765898938757,0.00732575,2924.4,2923.9,3.21734252]
[1765898939359,2.45732575,2924.4,2923.9,3.21734252]
[1765898939555,0.00732575,2924.4,2923.9,3.21734252]
[1765898939750,0.00732575,2924.4,2924.2,3.2078]
[1765898939948,0.00732575,2924.4,2924.2,3.37882]
[1765898940454,3.2078,2924.3,2923.9,0.00954252]
[1765898940649,3.2078,2924.0,2923.9,0.00954252]
[1765898940856,5.9178,2924.0,2923.9,0.00954252]
[1765898941047,3.2078,2924.3,2923.9,0.00954252]
[1765898941350,3.2078,2924.0,2923.9,0.00954252]
[1765898941550,3.21512575,2924.4,2923.9,0.00954252]
[1765898941751,5.56512575,2924.4,2923.9,0.00954252]
[1765898942150,3.21512575,2924.4,2923.9,0.00954252]
[1765898942350,3.21512575,2924.4,2924.1,0.17102]
[1765898942551,3.2078,2925.1,2924.2,3.2078]
[1765898942751,2.28,2925.1,2924.5,3.2078]
[1765898942955,3.2078,2925.0,2924.4,1.9592]
[1765898943153,2.49,2925.0,2924.4,1.9592]
[1765898943356,2.49,2925.0,2924.4,5.167]
[1765898943552,2.49390406,2925.0,2924.4,5.167]
[1765898944556,4.8013,2924.6,2923.9,0.00954252]
[1765898944861,3.2078,2924.3,2923.9,0.00954252]
[1765898945058,46.6178,2924.3,2923.9,0.00954252]
[1765898945551,3.2078,2924.0,2923.9,0.00954252]
[1765898945753,1.6929,2923.9,2922.8,3.2078]
[1765898945954,3.2078,2923.5,2922.5,7.99314372]
[1765898946154,4.6978,2923.5,2922.6,0.17111]
[1765898946759,0.00512891,2923.3,2922.8,0.00512891]
[1765898946958,2.33512891,2923.3,2922.8,3.21292891]
[1765898947558,3.2078,2923.2,2922.8,0.00512891]
[1765898947760,5.5078,2923.2,2922.8,0.00512891]
[1765898947959,2.3,2923.2,2922.8,0.00512891]
[1765898948752,5.5078,2923.2,2922.8,0.00512891]
[1765898949156,0.00512891,2923.3,2923.2,1.7928]
[1765898950361,3.2078,2924.1,2923.9,1.7928]
[1765898950568,0.00390406,2925.0,2923.9,11.9138]
[1765898950762,5.81170406,2925.0,2924.1,3.2078]
[1765898952664,2.60390406,2925.0,2924.6,1.7928]
[1765898952858,3.2078,2925.6,2924.8,3.2078]
[1765898953552,3.2078,2925.6,2924.8,3.37878]
[1765898954058,3.21200449,2925.6,2924.8,8.16473088]
[1765898954358,0.00420449,2925.6,2925.2,3.2078]
[1765898954559,0.00420449,2925.6,2925.5,3.2078]
[1765898955066,0.00420449,2925.6,2925.4,3.2078]
[1765898955660,2.32420449,2925.6,2925.4,3.2078]
[1765898955866,5.53200449,2925.6,2924.9,3.2078]
[1765898956359,0.00420449,2925.6,2924.9,3.2078]
[1765898956561,0.00420449,2925.6,2925.0,0.17097]
[1765898956966,0.00420449,2925.6,2925.3,3.2078]